[Event "Fagernes GM Open Autumn 2024"]
[Site "Fagernes"]
[Date "2024.10.08"]
[Round "3.5"]
[White "Sasikiran, Krishnan"]
[Black "Moksh Amit Doshi"]
[Result "1/2-1/2"]
[ECO "C88"]
[WhiteElo "2571"]
[BlackElo "2377"]
[Annotator "TA"]
[PlyCount "60"]
[EventDate "2024.10.03"]
[EventType "swiss"]
[EventCountry "NOR"]
[SourceTitle "playchess.com"]
[Source "ChessBase"]
[SourceQuality "1"]
[TimeControl "40/6000:2400+30"]

{[%evp 16,60,36,14,35,11,13,14,25,21,18,5,19,10,23,0,29,27,22,18,25,-13,-8,-20,0,0,-20,-15,0,0,12,16,78,41,128,35,39,0,0,-36,-32,-34,0,0,0,0,0]} 1. e4 {[%emt 0:00:00]} e5 {[%emt 0:02:15]} 2. Nf3 {[%emt 0:00:00]} Nc6 {[%emt 0:00:00]} 3. Bb5 {[%emt 0:00:00][%cal Bf1b5,Bb5a4,Ba4b3,Bb3a2][%mdl 32]} a6 {[%emt 0:00:00]} 4. Ba4 {[%emt 0:00:00]} Nf6 {[%emt 0:00:00]} 5. O-O {[%emt 0:00:00]} Be7 {[%emt 0:00:00]} 6. Re1 {[%emt 0:00:00]} b5 {[%emt 0:00:00]} 7. Bb3 {[%emt 0:00:00]} O-O {[%emt 0:00:00]} 8. a4 {[%emt 0:00:00]} Rb8 {[%emt 0:00:00]} 9. d3 {[%emt 0:00:14]} d6 {[%emt 0:00:00]} 10. Nbd2 {[%emt 0:08:19]} Na5 {[%emt 0:00:44]} 11. Ba2 {[%emt 0:01:16]} c5 {[%emt 0:00:41]} 12. h3 {[%emt 0:06:29]} h6 {[%emt 0:04:42]} 13. Nf1 {[%emt 0:05:21]} Re8 {[%emt 0:04:06]} 14. Ne3 {[%emt 0:07:14]} Bf8 {[%emt 0:04:32]} 15. Nh2 {[%emt 0:03:15]} Nc6 {[%emt 0:06:12]} 16. Nhg4 {[%emt 0:04:46]} Nxg4 {[%emt 0:02:10]} 17. hxg4 {[%emt 0:00:15]} Be6 {[%emt 0:00:22]} 18. c3 {[%emt 0:07:02]} b4 {[%emt 0:04:00]} 19. Bc4 {[%emt 0:08:42]} Bxc4 {[%emt 0:08:29]} 20. dxc4 {[%emt 0:02:52][%cal Oa4a5]} bxc3 {[%emt 0:02:09]} 21. bxc3 {[%emt 0:00:22]} Qd7 {[%emt 0:07:29]} 22. a5 {[%emt 0:05:44]} Be7 {[%emt 0:03:25]} 23. Nf5 {[%emt 0:07:18]} Bd8 {[%emt 0:02:30]} (23... Nd8 $11) 24. Re3 {[%emt 0:08:13]} (24. Qxd6 Qxd6 25. Nxd6 Re6 $11) (24. Nxd6 {vereinfacht} Re6 25. Nf5 Qxd1 26. Rxd1 Rb3 27. Rd3) 24... Nxa5 {[%emt 0:04:41]} ({Vorzuziehen ist} 24... Re6 $14) 25. g5 {[%emt 0:12:40] Weiß steht aktiver.} (25. Rh3 $16 {[%cal Oc1h6] Zielt auf Bxh6! ab.} Re6 26. g5) 25... Nb3 $1 $14 {[%emt 0:11:41] [#]} (25... hxg5 $2 26. Qh5 Re6 27. Rh3 $18) 26. gxh6 $1 {[%emt 0:02:54]} g6 {[%emt 0:00:02]} (26... Nxa1 27. hxg7 Bf6 28. Rg3 $18) 27. Rb1 {[%emt 0:02:39]} (27. Qxd6 $2 Qxd6 28. Nxd6 Nxa1 $19 (28... Re6 $2 29. Rxa6 Be7 30. Rh3 $19)) 27... gxf5 {[%emt 0:02:15]} 28. exf5 {[%emt 0:00:58]} Qxf5 {[%emt 0:02:43]} ({Vergiftet wäre} 28... Bg5 $2 29. Rg3 (29. Rxb3 Rxb3 30. Rg3 Rb1 $15) 29... Nxc1 30. Rxg5+ Kh8 31. Rxb8 (31. Rxc1 Qe7 $16) (31. Qxc1 f6 $11) 31... Rxb8 32. Qg4 $18 (32. Qxc1 f6 $11) (32. Qxc1 f6 $11)) (28... Kh8 $5 29. Rh3 (29. Rxb3 Rxb3 30. Qxb3 Bg5 $15) 29... Qa4 $11 (29... Qxf5 30. Rxb3 Rxb3 31. Qxb3 $11)) 29. Rxb3 {[%emt 0:00:00]} Rxb3 {[%emt 0:00:34]} 30. Qxb3 {[%emt 0:00:00]} Kh8 {[%emt 0:05:18] Gewichteter Fehlerwert: Weiß=0.23 (präzise) /Schwarz=0.16 (sehr präzise) .  Fehler:       	Weiß=1     	Schwarz=2     Ungenau:       	Weiß=4     	Schwarz=2     OK:         	Weiß=4     	Schwarz=7     Stark:        	---       	Schwarz=1} 1/2-1/2

[Event "Fagernes GM Open Autumn 2024"]
[Site "Fagernes"]
[Date "2024.10.08"]
[Round "3.6"]
[White "Stremavicius, Titas"]
[Black "Fiskaaen, Martin Holten"]
[Result "1-0"]
[ECO "A11"]
[WhiteElo "2541"]
[BlackElo "2259"]
[Annotator "TA"]
[PlyCount "65"]
[EventDate "2024.10.03"]
[EventType "swiss"]
[EventCountry "NOR"]
[SourceTitle "playchess.com"]
[Source "ChessBase"]
[SourceQuality "1"]
[TimeControl "40/6000:2400+30"]

{[%evp 9,65,18,14,0,14,13,12,21,38,0,14,0,0,0,9,2,5,12,8,0,11,-16,52,54,48,62,56,62,98,100,170,178,204,211,206,197,383,402,385,379,430,428,375,302,293,264,400,383,500,509,400,320,852,839,885,789,1485,1358]} 1. Nf3 {[%emt 0:00:00]} d5 {[%emt 0:01:03]} 2. g3 {[%emt 0:00:00]} Nf6 {[%emt 0:00:00]} 3. Bg2 {[%emt 0:00:00]} c6 {[%emt 0:00:00]} 4. c4 {[%emt 0:00:00]} Bg4 {[%emt 0:00:00]} 5. d4 {[%emt 0:00:10]} e6 {[%emt 0:02:38]} 6. h3 {[%emt 0:00:00]} Bh5 {[%emt 0:02:41]} 7. O-O {[%emt 0:00:39]} Nbd7 {[%emt 0:00:02]} 8. cxd5 {[%emt 0:00:00] The position is equal.} exd5 {[%emt 0:00:04]} 9. Ne5 {[%emt 0:00:00]} Ne4 {[%emt 0:02:00]} 10. Bxe4 {[%emt 0:00:00]} dxe4 {[%emt 0:00:13]} 11. Nc3 {[%emt 0:00:00]} f6 {[%emt 0:01:26]} 12. Nc4 {[%emt 0:00:00][%cal Od4d5]} Nb6 {[%emt 0:00:19]} 13. Nxb6 {[%emt 0:01:30]} axb6 {[%emt 0:00:00]} 14. Be3 {[%emt 0:07:42][%cal Od4d5]} Be7 {[%emt 0:02:58]} 15. a4 {[%emt 0:02:33][%cal Od4d5]} f5 {[%emt 0:15:08]} (15... Qd7 $11) 16. d5 $14 {[%emt 0:03:40]} Bf7 {[%emt 0:04:09]} 17. Qd4 {[%emt 0:17:11][%csl LRb6,LRg7]} Bf6 {[%emt 0:28:37]} 18. Qb4 {[%emt 0:00:14]} c5 {[%emt 0:08:00] Black is on the road to losing.} 19. Qb5+ {[%emt 0:00:00]} Kf8 {[%emt 0:00:17] [#]} (19... Qd7 $16) 20. a5 $1 $18 {[%emt 0:00:00][%mdl 512]} bxa5 {[%emt 0:00:36]} (20... Rxa5 21. Rxa5) 21. Bxc5+ {[%emt 0:01:14]} (21. Qxc5+ Kg8 22. d6 h5 23. Qxf5 Bxc3) 21... Kg8 {[%emt 0:00:00] [#]} 22. Rfd1 $1 {[%emt 0:07:25] And now d6 would win.} (22. Qxb7 $6 Rb8 23. Qc6 Rxb2 $14) 22... h5 $2 {[%emt 0:01:26] [#]} (22... Be8 23. Qxb7 Rb8) 23. d6 $1 {[%emt 0:00:00][%cal Bd5d6,Bd6d7][%mdl 32]} (23. Qxb7 Rb8 24. Qa7 Rxb2 $16) 23... h4 {[%emt 0:06:29][%cal Bh5h4,Bh4g3,Bg3f2][%mdl 32]} 24. Bb6 {[%emt 0:02:11]} (24. Qxb7 Rb8 (24... hxg3 25. Nd5 $16) 25. Qc7 hxg3 $16) 24... Qf8 {[%emt 0:00:00]} 25. Rxa5 {[%emt 0:04:17]} (25. Qxf5 hxg3 26. fxg3 (26. Nxe4 gxf2+ 27. Bxf2 Bb3 $18) 26... Rh5 27. Qxe4 Rxh3 $18) 25... hxg3 {[%emt 0:06:24]} 26. d7 {[%emt 0:01:47] Black must now prevent Rxa8.} (26. Qxf5 Rxa5 27. Qxa5 (27. Bxa5 $2 Rh5 $19) 27... gxf2+ 28. Bxf2 Bb3 $11) 26... gxf2+ {[%emt 0:01:03]} 27. Kf1 {[%emt 0:00:45] Strongly threatening Rxa8.} (27. Bxf2 e3 $18) 27... Rb8 {[%emt 0:03:36]} (27... Rxa5 $2 28. Bxa5 Bd8 29. Bb4 $18 (29. Kxf2 Rh6 $18) (29. Qxf5 $2 b6 $19) (29. Kxf2 Rh6 $18) (29. Qxf5 $2 b6 $19)) (27... Rxh3 $142 28. Rxa8 (28. Qxf5 Rh1+ 29. Kg2 Rxa5 $11) 28... Qxa8 29. d8=R+ (29. d8=Q+ Bxd8 30. Rxd8+ Qxd8 $18) 29... Bxd8) 28. Qxf5 {[%emt 0:00:33]} (28. Bxf2 b6 29. Ra7 (29. Bxb6 Rxh3 30. Qc6 Rh6 $16) 29... Rxh3 $16) 28... e3 {[%emt 0:06:57]} 29. Nd5 {[%emt 0:05:06]} (29. Bxe3 Rh5 30. Qxh5 Bxh5 31. Rxh5 Qf7 $11) 29... Bh4 {[%emt 0:00:03]} 30. Nxe3 {[%emt 0:00:35]} (30. Bxe3 Rh5 31. Qe4 g6 $18) 30... Rh5 $2 {[%emt 0:02:07]} (30... Qb4) 31. Qf4 {[%emt 0:00:00] Threatens to win with Rxh5. White is clearly winning.} Rxa5 {[%emt 0:00:46]} 32. Qxh4 {[%emt 0:00:00]} g5 {[%emt 0:00:05]} 33. Qg3 {[%emt 0:00:00] Weighted Error Value: White=0.15 (very precise) /Black=0.45.  Mistake:       	---       	Black=5      Inaccurate:     	White=2     	Black=2      OK:         	White=12    	Black=4      Best:        	White=3     	Black=1      Strong:       	White=1     	---        Brilliant:      	White=1     	---} ({Weaker is} 33. d8=Q Rxd8 (33... gxh4 $2 {loses.} 34. Qxf8+ Kxf8 35. Bxa5 $18) 34. Qg3 Rxd1+ 35. Nxd1 Rb5 36. Bxf2 Qd8 $17) 1-0

[Event "Fagernes GM Open Autumn 2024"]
[Site "Fagernes"]
[Date "2024.10.08"]
[Round "3.7"]
[White "Sidhant, Mohapatra"]
[Black "Bazakutsa, Svyatoslav"]
[Result "0-1"]
[ECO "B51"]
[WhiteElo "2369"]
[BlackElo "2483"]
[Annotator "TA"]
[PlyCount "56"]
[EventDate "2024.10.03"]
[EventType "swiss"]
[EventCountry "NOR"]
[SourceTitle "playchess.com"]
[Source "ChessBase"]
[SourceQuality "1"]
[TimeControl "40/6000:2400+30"]

{[%evp 11,56,20,24,33,38,40,35,30,61,8,71,27,65,-25,0,-43,-41,-45,-37,-54,-57,-51,0,-10,0,-162,-143,-214,-166,-308,-298,-300,-305,-335,-172,-418,-407,-1046,-1026,-960,-1029,-1021,-1044,-29987,-29988,-29997,-29998]} 1. e4 {[%emt 0:01:55]} c5 {[%emt 0:01:06]} 2. Nf3 {[%emt 0:00:00]} Nc6 {[%emt 0:00:00]} 3. Bb5 {[%emt 0:00:00]} d6 {[%emt 0:00:00]} 4. Bxc6+ {[%emt 0:00:00]} bxc6 {[%emt 0:00:00]} 5. O-O {[%emt 0:00:00]} e5 {[%emt 0:00:00]} 6. c3 {[%emt 0:00:00]} f5 {[%emt 0:00:00]} 7. d4 {[%emt 0:00:00]} cxd4 {[%emt 0:00:14]} 8. cxd4 {[%emt 0:00:23]} fxe4 {[%emt 0:00:00]} 9. Ng5 {[%emt 0:01:59] White is slightly better.} d5 {[%emt 0:00:13] [#] aiming for ...exd4.} 10. dxe5 {[%emt 0:04:15]} (10. Nxe4 $1 $14 dxe4 11. Qh5+ Kd7 12. dxe5) 10... Be7 {[%emt 0:38:23]} (10... Bf5 $11 {remains equal.}) 11. Nc3 {[%emt 0:16:56][%cal Od1a4]} Bf5 {[%emt 0:06:09][%cal Og8h6]} 12. Nh3 {[%emt 0:12:36]} (12. Qa4 $14 Rc8 13. Rd1 Bxg5 14. Nxd5 Bxc1 15. Raxc1 (15. Nf6+ Nxf6 16. Rxd8+ Rxd8 $11)) 12... Qd7 $11 {[%emt 0:07:50]} 13. Nf4 {[%emt 0:00:13]} Nh6 $1 {[%emt 0:05:31]} 14. Nh5 {[%emt 0:14:15]} O-O {[%emt 0:08:20] And now ...Bg4 would win.} 15. Bxh6 {[%emt 0:05:55]} gxh6 {[%emt 0:02:12]} 16. f3 {[%emt 0:01:25] Inhibits Bg4.} Qe6 {[%emt 0:03:54] ...exf3 is the strong threat.} 17. Qd4 {[%emt 0:18:57][%cal Rf3e4]} ({Don't go for} 17. fxe4 $2 Bg4 18. Qd4 Bxh5 $19) 17... Bg6 {[%emt 0:05:02] Threatens to win with ...Bd8.} 18. Ng3 $2 {[%emt 0:00:00]} (18. Nf6+ $1 $11 {and White is okay.} Bxf6 19. exf6) 18... exf3 $19 {[%emt 0:02:46]} 19. gxf3 {[%emt 0:00:00]} (19. Rxf3 $17 {was necessary.} Rae8 20. Kh1) 19... Rf7 {[%emt 0:03:15]} 20. b4 {[%emt 0:02:26]} (20. Qg4 $142 Qxg4 (20... Qxe5 21. f4 $17) 21. fxg4) 20... Raf8 {[%emt 0:01:47]} 21. f4 {[%emt 0:00:00]} Qg4 {[%emt 0:00:00]} 22. Nce2 {[%emt 0:00:00] f5 would now be deadly.} Be4 {[%emt 0:00:27]} (22... Bd8 $142 {Hoping for ...Bb6.} 23. Kh1 Bb6) 23. Rf2 $2 {[%emt 0:01:29]} (23. Kf2 {might work better.}) 23... Bd8 {[%emt 0:00:30] Strongly threatening ...Bb6. This pair of bishops is nice.} 24. h3 {[%emt 0:00:24]} (24. e6 $142 Rg7 (24... Qxe6 25. Nxe4 Rg7+ 26. N4g3 $11) 25. Kf1) 24... Qxh3 {[%emt 0:00:20] ( -> ...Bb6)} 25. Nxe4 {[%emt 0:00:17]} Rg7+ {[%emt 0:00:23]} 26. N4g3 {[%emt 0:00:00]} Bb6 {[%emt 0:00:00]} 27. Qd3 {[%emt 0:00:34] [#]} Rxf4 $3 {[%emt 0:00:59][%csl Gf4][%cal Rb6f2][%mdl 512]} 28. Raf1 {[%emt 0:00:00]} (28. Nxf4 Rxg3+) 28... Rh4 {[%emt 0:02:30] Weighted Error Value: White=1.07/Black=0.22 (precise) .  Loses game:     	White=1     	---        Mistake:       	White=6     	Black=2      Inaccurate:     	White=2     	Black=2      OK:         	White=6     	Black=7      Best:        	---       	Black=3      Strong:       	---       	Black=1} 0-1

[Event "Fagernes GM Open Autumn 2024"]
[Site "Fagernes"]
[Date "2024.10.08"]
[Round "3.8"]
[White "Das, Sayantan"]
[Black "Krishnan, Ritvik"]
[Result "1/2-1/2"]
[ECO "C78"]
[WhiteElo "2471"]
[BlackElo "2206"]
[Annotator "TA"]
[PlyCount "121"]
[EventDate "2024.10.03"]
[EventType "swiss"]
[EventCountry "NOR"]
[SourceTitle "playchess.com"]
[Source "ChessBase"]
[SourceQuality "1"]
[TimeControl "40/6000:2400+30"]

{[%evp 34,121,18,-64,172,195,179,192,198,93,103,97,87,95,104,91,88,93,80,104,102,91,73,0,0,0,0,0,0,0,0,0,0,0,0,0,14,0,51,33,95,-8,-8,-8,-8,-8,-8,-8,-8,-8,-8,-8,-7,-7,-7,-8,-7,-57,-7,-7,-8,-8,-8,-47,0,0,0,0,0,0,0,0,0,0,0,0,0,0,0,0,0,0,0,0,0,0,8,8,8,8]} 1. e4 {[%emt 0:00:20]} e5 {[%emt 0:00:00]} 2. Nf3 {[%emt 0:00:01]} Nc6 {[%emt 0:00:00]} 3. Bb5 {[%emt 0:00:04]} a6 {[%emt 0:00:00]} 4. Ba4 {[%emt 0:00:00]} Nf6 {[%emt 0:00:00]} 5. O-O {[%emt 0:00:59]} b5 {[%emt 0:00:00]} 6. Bb3 {[%emt 0:00:00]} Bc5 {[%emt 0:00:00]} 7. c3 {[%emt 0:03:31]} d6 {[%emt 0:00:00]} 8. d4 {[%emt 0:00:00]} Bb6 {[%emt 0:00:00]} 9. Be3 {[%emt 0:00:00]} O-O {[%emt 0:00:00] C78: Ruy Lopez: Archangelsk and Möller Defences.} 10. h3 {[%emt 0:00:00]} exd4 {[%emt 0:00:00] 10...h6 is a critical line.} 11. cxd4 {[%emt 0:01:42]} Na5 {[%emt 0:00:00]} 12. Bc2 {[%emt 0:00:46]} Bb7 {[%emt 0:00:00]} 13. Nbd2 {[%emt 0:01:32]} Re8 {[%emt 0:00:06]} 14. Qb1 {[%emt 0:09:57]} h6 {[%emt 0:06:27]} 15. Re1 {[%emt 0:01:06]} Nc4 {[%emt 0:00:59]} 16. Nxc4 {[%emt 0:07:40]} bxc4 {[%emt 0:02:32]} 17. Nd2 {[%emt 0:02:22]} Rb8 {[%emt 0:13:22]} 18. f3 {[%emt 0:15:40] [#]} (18. Qd1 $11) 18... Nd5 $146 {[%emt 0:07:25]} (18... d5 $1 $15 19. e5 Nh5) ({Predecessor:} 18... c3 19. bxc3 Ba5 20. Qc1 Bxc3 21. Rb1 c6 22. Ba4 Bxd2 23. Qxd2 Qc7 24. d5 Rec8 {1-0 Kevlishvili,R (2450)-Mustafin,A (2262) EU-ch U16 27th 2017 (4)}) 19. exd5 $18 {[%emt 0:16:35]} Rxe3 {[%emt 0:00:02]} 20. Rxe3 {[%emt 0:00:00]} Bxd4 {[%emt 0:00:00] [#]} 21. Nf1 {[%emt 0:01:20]} (21. Nxc4 $1 $18 {[%cal Ob1d1] is more deadly. Threatens to win with Qd1!} Bxd5 22. Qd1) 21... Qg5 $16 {[%emt 0:02:00]} 22. Bh7+ {[%emt 0:00:31]} Kh8 {[%emt 0:07:38]} 23. Qe4 $1 {[%emt 0:00:00]} Qxd5 {[%emt 0:05:50]} 24. Qxd5 {[%emt 0:04:38]} Bxd5 {[%emt 0:00:00]} 25. Rd1 {[%emt 0:05:30]} Bxe3+ {[%emt 0:03:43]} 26. Nxe3 {[%emt 0:00:00]} Be6 {[%emt 0:00:48]} 27. Be4 {[%emt 0:03:26]} Rxb2 {[%emt 0:00:00]} 28. Rb1 {[%emt 0:00:42]} (28. a4 $16) 28... Rxb1+ $1 $11 {[%emt 0:03:49]} 29. Bxb1 {[%emt 0:00:00]} d5 {[%emt 0:01:18]} 30. f4 {[%emt 0:09:52]} f6 {[%emt 0:05:51]} 31. Kf2 {[%emt 0:05:14]} d4 {[%emt 0:00:21]} 32. Nf5 $1 {[%emt 0:00:21]} c5 {[%emt 0:00:50]} 33. Ke1 {[%emt 0:01:38]} c3 {[%emt 0:03:27]} 34. Nd6 {[%emt 0:02:01]} Bd5 {[%emt 0:04:47]} 35. g4 {[%emt 0:01:01]} a5 {[%emt 0:01:24]} (35... g5 $11 36. fxg5 fxg5) 36. a3 $1 $14 {[%emt 0:00:24]} Bb3 {[%emt 0:10:04]} ({Black should try} 36... g5 $14) 37. Nb7 {[%emt 0:00:35]} (37. Bd3 $16) 37... c2 $11 {[%emt 0:03:00]} 38. Bxc2 $1 {[%emt 0:00:00]} Bxc2 {[%emt 0:00:00]} 39. Nxc5 {[%emt 0:00:00]} g5 {[%emt 0:03:37]} 40. Kd2 {[%emt 0:00:00]} Bb1 {[%emt 0:00:56]} 41. f5 {[%emt 0:12:08]} Kg8 {[%emt 0:03:54]} 42. Nb3 {[%emt 0:07:12]} Be4 {[%emt 0:03:18]} 43. Nxa5 {[%emt 0:08:24]} Bg2 {[%emt 0:00:21]} 44. Nb3 {[%emt 0:03:45]} Bxh3 {[%emt 0:00:32]} 45. Nxd4 {[%emt 0:01:10]} (45. a4 $11) 45... Bxg4 {[%emt 0:00:39]} ({Black should play} 45... Kf7 $15 46. a4 Ke7 (46... Bxg4 47. a5 $15) 47. Nc6+ (47. a5 Kd7 $17) 47... Kd7 (47... Kd6 $2 48. Nd8 $19)) 46. a4 $11 {[%emt 0:00:23]} Bh3 {[%emt 0:00:41]} 47. a5 {[%emt 0:00:06]} Bg2 {[%emt 0:00:35]} 48. a6 {[%emt 0:01:34]} Kf7 {[%emt 0:02:36]} (48... h5 $15) 49. Ke3 $1 $11 {[%emt 0:00:42]} Ba8 {[%emt 0:01:57]} 50. Ne6 {[%emt 0:02:19]} Ke7 {[%emt 0:00:24]} 51. Ng7 $1 {[%emt 0:02:22]} (51. Nc7 Bc6 52. Ne6 (52. a7 $2 Kd7 $19) 52... h5 $15) 51... Kd6 {[%emt 0:06:09]} 52. Kd4 {[%emt 0:00:12]} Ke7 {[%emt 0:12:30]} (52... Bc6 $5) 53. a7 {[%emt 0:00:28]} Bf3 {[%emt 0:07:34]} 54. Kc5 {[%emt 0:00:45]} Ba8 {[%emt 0:00:51]} 55. Nh5 {[%emt 0:02:58]} Bf3 {[%emt 0:02:15]} 56. Kc4 {[%emt 0:00:57]} Ba8 {[%emt 0:00:56]} (56... Bxh5 57. a8=Q (57. a8=B $2 Bg4 $19) 57... g4 58. Qe4+ Kf8 59. Kc5 g3 60. Kd6 Bf7 61. Qa8+ Be8 62. Ke6 (62. Qd8 g2 63. Qe7+ Kg8 64. Qxe8+ Kh7 65. Qg6+ Kh8 66. Ke6 g1=Q 67. Qxg1 Kh7 68. Kf7 Kh8 69. Qg8#)) 57. Kd4 {[%emt 0:00:07]} Bf3 {[%emt 0:00:18]} 58. Ke3 {[%emt 0:01:47]} Ba8 {[%emt 0:00:17]} (58... Bxh5 59. a8=Q (59. a8=B $2 {too greedy.} Kd6 $19) 59... Bf7 60. Qa3+ Kd7 61. Qf8 Bd5 62. Qxf6 (62. Qxh6 Ke7 $18) 62... h5 63. Kd4 (63. Qxg5 h4 64. Qxh4 Kc6 65. f6 Bg8 66. Qh5 Be6 67. f7 Bxf7 68. Qxf7 Kb6)) 59. Kf2 {[%emt 0:00:56]} Kd6 {[%emt 0:00:45]} 60. Nxf6 {[%emt 0:01:29]} Ke5 {[%emt 0:00:03]} 61. Ng4+ {[%emt 0:00:16]} 1/2-1/2

[Event "Fagernes GM Open Autumn 2024"]
[Site "Fagernes"]
[Date "2024.10.08"]
[Round "3.9"]
[White "Oye-Stromberg, Alexander"]
[Black "Hillarp Persson, Tiger"]
[Result "1/2-1/2"]
[ECO "B10"]
[WhiteElo "2248"]
[BlackElo "2455"]
[Annotator "TA"]
[PlyCount "80"]
[EventDate "2024.10.03"]
[EventType "swiss"]
[EventCountry "NOR"]
[SourceTitle "playchess.com"]
[Source "ChessBase"]
[SourceQuality "1"]
[TimeControl "40/6000:2400+30"]

{[%evp 9,80,-2,0,-4,43,32,22,22,27,25,25,15,13,11,8,12,13,10,26,13,52,-40,-32,-119,-115,-122,-110,-119,-112,-100,-70,-66,-79,-180,-197,-193,-180,-152,-140,-139,-4,-5,0,-168,0,0,0,0,0,0,0,0,0,-5,-5,-5,-5,-5,-5,-8,-8,-8,-8,-8,-8,-8,-6,-8,-8,-256,-8,-8,-8]} 1. e4 {[%emt 0:00:00]} c6 {[%emt 0:01:33]} 2. Nf3 {[%emt 0:00:24]} d5 {[%emt 0:00:00]} 3. d3 {[%emt 0:00:06]} dxe4 {[%emt 0:00:00]} 4. dxe4 {[%emt 0:00:00]} Qxd1+ {[%emt 0:00:00]} 5. Kxd1 {[%emt 0:00:00][%cal Be1d1,Bd1e2,Be2f2,Bf2f3,Bf3f4][%mdl 32]} Nf6 {[%emt 0:00:52]} 6. Nbd2 {[%emt 0:01:33]} h5 {[%emt 0:00:00]} (6... g6 $11 {is superior.}) 7. a4 {[%emt 0:06:27]} Nbd7 {[%emt 0:25:30][%cal Bb8d7,Bd7e5,Be5g4][%mdl 32]} 8. Bc4 {[%emt 0:06:57]} Ng4 {[%emt 0:01:56]} 9. Ke2 {[%emt 0:01:12]} Nge5 {[%emt 0:00:00]} 10. Ba2 {[%emt 0:12:04]} b6 {[%emt 0:00:12]} 11. Nxe5 {[%emt 0:05:42]} Nxe5 {[%emt 0:00:29]} 12. f4 {[%emt 0:01:21]} Ba6+ {[%emt 0:00:25]} 13. Kf2 {[%emt 0:02:16]} Ng4+ {[%emt 0:01:51]} 14. Kf3 $1 {[%emt 0:09:40]} Rd8 {[%emt 0:11:49]} 15. Nc4 {[%emt 0:04:39]} (15. h3 $14) 15... g5 $1 $15 {[%emt 0:01:41]} 16. Ne3 {[%emt 0:11:51]} (16. c3 $15) 16... gxf4 $17 {[%emt 0:01:09]} 17. Nxg4 {[%emt 0:00:00]} hxg4+ {[%emt 0:00:00]} 18. Kxf4 {[%emt 0:01:25]} Rd4 {[%emt 0:09:10]} 19. Re1 {[%emt 0:04:22]} Rxh2 {[%emt 0:02:44]} (19... Rxa4 $2 20. Bxf7+ (20. Kxg4 Bc8+ 21. Kg3 Be6 $17) 20... Kxf7 21. Rxa4 $18) 20. Kg3 {[%emt 0:00:00]} Rh5 {[%emt 0:12:44]} 21. a5 {[%emt 0:10:44]} (21. Kxg4 $17 Re5 22. Kf4) 21... Rxa5 $19 {[%emt 0:04:36] [#] ...Bg7 is the strong threat.} 22. b4 {[%emt 0:00:47]} Rxb4 {[%emt 0:00:00]} 23. Bd2 {[%emt 0:00:00]} Ra3+ {[%emt 0:00:00]} 24. Bb3 {[%emt 0:00:00]} Rbxb3+ {[%emt 0:00:05]} (24... Rxa1 $17 25. Rxa1 Rd4 (25... Rxe4 26. Rxa6 e6 27. Rxa7 $14) 26. Rxa6 Rxd2 27. Rxa7 e6 28. Ra8+ Ke7) 25. cxb3 $11 {[%emt 0:00:00]} Rxb3+ {[%emt 0:00:00]} 26. Re3 $2 {[%emt 0:00:00]} (26. Kh4 $1 $11 {and White is okay.} Rd3 27. Rxa6 Rxd2 28. Rxa7) 26... Rxe3+ $2 {[%emt 0:00:11]} (26... Bd3 $19 {White must now prevent ...Bh6.} 27. Kxg4 a5 (27... Bh6 28. Rxd3 Rxd3 29. Bxh6 $11)) 27. Bxe3 $19 {[%emt 0:00:00][%mdl 4096] Endgame. KRB-KB} Bd3 {[%emt 0:02:25]} 28. Rxa7 {[%emt 0:00:00]} Bg7 {[%emt 0:00:02]} (28... Bxe4 $2 {perishes.} 29. Ra8+ (29. Kxg4 c5 $17) 29... Kd7 30. Rxf8 $18) 29. Bxb6 {[%emt 0:08:50] [#] Threatens to win with Ra8+.} Bxe4 {[%emt 0:00:00]} 30. Bc5 {[%emt 0:00:00]} Bf6 {[%emt 0:00:03]} 31. Ra4 {[%emt 0:00:17]} Be5+ {[%emt 0:05:14]} 32. Kxg4 {[%emt 0:02:53]} Bxg2 {[%emt 0:00:00]} 33. Ra8+ {[%emt 0:00:00]} Kd7 {[%emt 0:00:00] Threatening ...Ke6.} 34. Ra7+ {[%emt 0:00:00]} Ke6 {[%emt 0:00:00] And now ...Bd6 would win.} 35. Rxe7+ {[%emt 0:00:00]} Kd5 {[%emt 0:00:00]} 36. Be3 {[%emt 0:00:35]} f6 {[%emt 0:00:00]} 37. Bf4 {[%emt 0:02:10]} Bd4 {[%emt 0:00:00]} 38. Rd7+ {[%emt 0:00:57]} Ke4 {[%emt 0:00:00]} 39. Rxd4+ {[%emt 0:00:28]} Kxd4 {[%emt 0:00:00]} 40. Kf5 {[%emt 0:00:00]} c5 {[%emt 0:00:00] Weighted Error Value: White=0.28 (precise) /Black=0.19 (very precise) .  Loses game:     	White=1     	---        Missed win:     	---       	Black=2      Mistake:       	White=3     	Black=2      Inaccurate:     	---       	Black=1      OK:         	White=11    	Black=19     Best:        	White=5     	Black=2      Strong:       	White=1     	Black=1} 1/2-1/2